[Event "Early-Titled-Tuesday-Blitz-August-29-2023"]
[Site "Chess.com"]
[Date "2023.08.29"]
[Round "11"]
[White "Veleamater"]
[Black "Bilan_Danila"]
[Result "0-1"]
[WhiteElo "2335"]
[BlackElo "2501"]
[TimeControl "180+1"]
[EndTime "10:01:49 PDT"]
[Termination "Bilan_Danila won on time"]

1. g3 {[%clk 0:00:40.8]} 1... d5 {[%clk 0:02:57.7]} 2. Bg2 {[%clk 0:00:40.2]}
2... Nf6 {[%clk 0:02:58.2]} 3. d3 {[%clk 0:00:41]} 3... Bg4 {[%clk 0:02:57.3]}
4. Nf3 {[%clk 0:00:41.5]} 4... e6 {[%clk 0:02:56.9]} 5. h3 {[%clk 0:00:41.9]}
5... Bh5 {[%clk 0:02:57]} 6. O-O {[%clk 0:00:42.2]} 6... Nbd7 {[%clk 0:02:56.7]}
7. Nc3 {[%clk 0:00:42.6]} 7... Bc5 {[%clk 0:02:56]} 8. e4 {[%clk 0:00:42.6]}
8... c6 {[%clk 0:02:55.9]} 9. g4 {[%clk 0:00:42.5]} 9... Bg6 {[%clk 0:02:56.1]}
10. Nd2 {[%clk 0:00:43.1]} 10... dxe4 {[%clk 0:02:54]} 11. Ndxe4 {[%clk
0:00:42.8]} 11... Nxe4 {[%clk 0:02:54.1]} 12. dxe4 {[%clk 0:00:43.7]} 12... h5
{[%clk 0:02:51.9]} 13. g5 {[%clk 0:00:43]} 13... h4 {[%clk 0:02:52.3]} 14. Kh1
{[%clk 0:00:42.6]} 14... e5 {[%clk 0:02:51.7]} 15. Qe2 {[%clk 0:00:42.3]} 15...
Nf8 {[%clk 0:02:47.2]} 16. Be3 {[%clk 0:00:40.9]} 16... Be7 {[%clk 0:02:41.7]}
17. Qg4 {[%clk 0:00:38.7]} 17... Ne6 {[%clk 0:02:38]} 18. Rad1 {[%clk
0:00:37.7]} 18... Qc7 {[%clk 0:02:37.5]} 19. f4 {[%clk 0:00:31.3]} 19... exf4
{[%clk 0:02:32.2]} 20. Bxf4 {[%clk 0:00:30.6]} 20... Nxf4 {[%clk 0:02:30]} 21.
Qxf4 {[%clk 0:00:31]} 21... Qxf4 {[%clk 0:02:28.7]} 22. Rxf4 {[%clk 0:00:31]}
22... Bxg5 {[%clk 0:02:27.8]} 23. Rff1 {[%clk 0:00:28.4]} 23... Rd8 {[%clk
0:02:21.5]} 24. Rxd8+ {[%clk 0:00:27.1]} 24... Kxd8 {[%clk 0:02:22.4]} 25. e5
{[%clk 0:00:26.5]} 25... Kc7 {[%clk 0:02:13.2]} 26. Ne4 {[%clk 0:00:25.1]} 26...
Be7 {[%clk 0:02:11.1]} 27. c3 {[%clk 0:00:13.1]} 27... Rh5 {[%clk 0:02:08.8]}
28. Nf2 {[%clk 0:00:08.3]} 28... Rxe5 {[%clk 0:02:05.8]} 29. Ng4 {[%clk
0:00:07.3]} 29... Re2 {[%clk 0:02:04.4]} 30. b4 {[%clk 0:00:07.5]} 30... Bd6
{[%clk 0:01:58.8]} 31. Bf3 {[%clk 0:00:06.8]} 31... Rxa2 {[%clk 0:01:57.7]} 32.
Re1 {[%clk 0:00:07.1]} 32... a5 {[%clk 0:01:48.9]} 33. bxa5 {[%clk 0:00:06.4]}
33... Rxa5 {[%clk 0:01:49.8]} 34. Be4 {[%clk 0:00:01.2]} 34... Bxe4+ {[%clk
0:01:48]} 0-1

[Event "Early-Titled-Tuesday-Blitz-August-29-2023"]
[Site "Chess.com"]
[Date "2023.08.29"]
[Round "11"]
[White "BillCoe"]
[Black "Mihaiionescu1"]
[Result "1-0"]
[WhiteElo "2142"]
[BlackElo "2446"]
[TimeControl "180+1"]
[EndTime "10:01:49 PDT"]
[Termination "BillCoe won by resignation"]

1. e4 {[%clk 0:03:00]} 1... c5 {[%clk 0:02:59]} 2. Nf3 {[%clk 0:03:00.2]} 2...
d6 {[%clk 0:02:58.9]} 3. d4 {[%clk 0:03:00.6]} 3... cxd4 {[%clk 0:02:59.8]} 4.
Nxd4 {[%clk 0:03:00.8]} 4... Nf6 {[%clk 0:03:00.5]} 5. Nc3 {[%clk 0:03:01.5]}
5... g6 {[%clk 0:03:00.9]} 6. f3 {[%clk 0:03:00.8]} 6... Bg7 {[%clk 0:03:01.1]}
7. Be3 {[%clk 0:03:01.3]} 7... O-O {[%clk 0:03:01.3]} 8. Qd2 {[%clk 0:03:01.7]}
8... Nc6 {[%clk 0:03:01.5]} 9. O-O-O {[%clk 0:03:02.5]} 9... d5 {[%clk
0:03:01.6]} 10. Kb1 {[%clk 0:03:02.2]} 10... e5 {[%clk 0:03:00.7]} 11. Nxc6
{[%clk 0:03:01.3]} 11... bxc6 {[%clk 0:02:59]} 12. exd5 {[%clk 0:03:01.1]} 12...
cxd5 {[%clk 0:02:58]} 13. Nxd5 {[%clk 0:03:01]} 13... Nxd5 {[%clk 0:02:51.7]}
14. Qxd5 {[%clk 0:03:01.7]} 14... Qc7 {[%clk 0:02:52.1]} 15. Qxa8 {[%clk
0:03:00.3]} 15... Bf5 {[%clk 0:02:52.2]} 16. Qxf8+ {[%clk 0:02:59.2]} 16... Kxf8
{[%clk 0:02:51.3]} 17. Bd3 {[%clk 0:02:58.3]} 17... Be6 {[%clk 0:02:45.8]} 18.
Be4 {[%clk 0:02:46.8]} 18... f5 {[%clk 0:02:42.5]} 19. Bd5 {[%clk 0:02:45.5]}
19... Bxd5 {[%clk 0:02:21.3]} 20. Rxd5 {[%clk 0:02:46.2]} 20... Qb7 {[%clk
0:02:22]} 21. Bc5+ {[%clk 0:02:42.8]} 21... Kf7 {[%clk 0:01:59.9]} 22. Rhd1
{[%clk 0:02:41.5]} 22... Qb5 {[%clk 0:01:56.8]} 23. Ba3 {[%clk 0:02:32.5]} 23...
Qe2 {[%clk 0:01:49.3]} 24. R5d2 {[%clk 0:02:31.3]} 24... Qc4 {[%clk 0:01:47.5]}
25. b3 {[%clk 0:02:22]} 25... Qf4 {[%clk 0:01:45.4]} 26. h3 {[%clk 0:02:17]}
26... e4 {[%clk 0:01:44.1]} 27. Rd7+ {[%clk 0:02:03.3]} 27... Kg8 {[%clk
0:01:36.5]} 28. Rd8+ {[%clk 0:02:00.1]} 28... Kf7 {[%clk 0:01:36.4]} 29. R1d7+
{[%clk 0:01:55.3]} 29... Ke6 {[%clk 0:01:33.2]} 30. Rxg7 {[%clk 0:01:38.5]}
30... exf3 {[%clk 0:01:33.2]} 31. gxf3 {[%clk 0:01:20.9]} 31... Qxf3 {[%clk
0:01:34.1]} 32. Re7+ {[%clk 0:01:15]} 32... Kf6 {[%clk 0:01:33.5]} 33. Rf8+
{[%clk 0:01:15.3]} 33... Kg5 {[%clk 0:01:33.4]} 34. Bc1+ {[%clk 0:01:13.7]}
34... Kh4 {[%clk 0:01:31.4]} 35. Rxh7+ {[%clk 0:01:07.6]} 35... Kg3 {[%clk
0:01:31.3]} 36. Rg8 {[%clk 0:00:58.7]} 36... Qc6 {[%clk 0:01:21.5]} 37. Rhg7
{[%clk 0:00:56.9]} 1-0

[Event "Early-Titled-Tuesday-Blitz-August-29-2023"]
[Site "Chess.com"]
[Date "2023.08.29"]
[Round "11"]
[White "falzehope0"]
[Black "leopato"]
[Result "1-0"]
[WhiteElo "2417"]
[BlackElo "2169"]
[TimeControl "180+1"]
[EndTime "10:01:58 PDT"]
[Termination "falzehope0 won on time"]

1. d4 {[%clk 0:03:00.9]} 1... Nf6 {[%clk 0:01:03.2]} 2. e3 {[%clk 0:03:01.8]}
2... g6 {[%clk 0:01:03]} 3. Bd3 {[%clk 0:03:01.9]} 3... Bg7 {[%clk 0:01:03.3]}
4. f4 {[%clk 0:03:02.5]} 4... d6 {[%clk 0:01:03.1]} 5. Nf3 {[%clk 0:03:03.2]}
5... O-O {[%clk 0:01:03.2]} 6. O-O {[%clk 0:03:03.9]} 6... c5 {[%clk 0:01:03.5]}
7. c3 {[%clk 0:03:03.3]} 7... Nc6 {[%clk 0:01:03.8]} 8. Bc2 {[%clk 0:03:03.1]}
8... e5 {[%clk 0:01:02.8]} 9. d5 {[%clk 0:03:03.3]} 9... e4 {[%clk 0:01:00.4]}
10. Ng5 {[%clk 0:03:00.1]} 10... Ne7 {[%clk 0:01:00.3]} 11. c4 {[%clk
0:02:59.7]} 11... Bf5 {[%clk 0:00:58.7]} 12. Nc3 {[%clk 0:02:59.5]} 12... Re8
{[%clk 0:00:52.8]} 13. Ngxe4 {[%clk 0:02:59.3]} 13... Nxe4 {[%clk 0:00:51.8]}
14. Nxe4 {[%clk 0:03:00.2]} 14... b5 {[%clk 0:00:45.5]} 15. cxb5 {[%clk
0:02:56.9]} 15... Qb6 {[%clk 0:00:37.7]} 16. Nc3 {[%clk 0:02:56.5]} 16... Bxc2
{[%clk 0:00:34.1]} 17. Qxc2 {[%clk 0:02:57.4]} 17... a6 {[%clk 0:00:33]} 18.
bxa6 {[%clk 0:02:57]} 18... f5 {[%clk 0:00:26.4]} 19. e4 {[%clk 0:02:48.7]}
19... fxe4 {[%clk 0:00:19.2]} 20. Qxe4 {[%clk 0:02:45.8]} 20... Nf5 {[%clk
0:00:16.2]} 21. Qf3 {[%clk 0:02:45.6]} 21... Bd4+ {[%clk 0:00:13.7]} 22. Kh1
{[%clk 0:02:44.7]} 22... Qxa6 {[%clk 0:00:11]} 23. Bd2 {[%clk 0:02:38.1]} 23...
Rab8 {[%clk 0:00:05.3]} 24. b3 {[%clk 0:02:32.7]} 24... c4 {[%clk 0:00:05.4]}
25. Rae1 {[%clk 0:02:26.7]} 25... cxb3 {[%clk 0:00:05]} 26. axb3 {[%clk
0:02:27.3]} 26... Qa3 {[%clk 0:00:02.8]} 27. Rxe8+ {[%clk 0:02:11.9]} 27... Rxe8
{[%clk 0:00:03.7]} 28. Nb5 {[%clk 0:02:11.5]} 28... Qc5 {[%clk 0:00:04.1]} 29.
Nxd4 {[%clk 0:02:10.6]} 29... Qxd4 {[%clk 0:00:05]} 30. Bc3 {[%clk 0:02:08.8]}
30... Qe4 {[%clk 0:00:04.2]} 31. Qxe4 {[%clk 0:02:02]} 31... Rxe4 {[%clk
0:00:05.1]} 32. b4 {[%clk 0:01:59.4]} 32... Ne3 {[%clk 0:00:05.3]} 33. Rb1
{[%clk 0:01:56.1]} 33... Nxd5 {[%clk 0:00:05.4]} 34. Bd2 {[%clk 0:01:50.2]}
34... Nb6 {[%clk 0:00:05.7]} 35. b5 {[%clk 0:01:50.1]} 35... Rd4 {[%clk
0:00:05.3]} 36. Be3 {[%clk 0:01:49.3]} 36... Rd5 {[%clk 0:00:04]} 37. Bxb6
{[%clk 0:01:49.2]} 1-0

[Event "Early-Titled-Tuesday-Blitz-August-29-2023"]
[Site "Chess.com"]
[Date "2023.08.29"]
[Round "11"]
[White "lefonghua"]
[Black "reevecanada"]
[Result "0-1"]
[WhiteElo "2656"]
[BlackElo "2532"]
[TimeControl "180+1"]
[EndTime "10:02:03 PDT"]
[Termination "reevecanada won by resignation"]

1. d4 {[%clk 0:03:00.9]} 1... d5 {[%clk 0:02:52.8]} 2. c4 {[%clk 0:03:01.4]}
2... c6 {[%clk 0:02:51.5]} 3. Nf3 {[%clk 0:03:01.4]} 3... Nf6 {[%clk 0:02:50.8]}
4. Nc3 {[%clk 0:03:01.8]} 4... dxc4 {[%clk 0:02:51.1]} 5. a4 {[%clk 0:03:01.8]}
5... Bf5 {[%clk 0:02:50.8]} 6. Ne5 {[%clk 0:03:02.2]} 6... Nbd7 {[%clk
0:02:51.1]} 7. Nxc4 {[%clk 0:03:02.4]} 7... Nb6 {[%clk 0:02:51.5]} 8. Ne5 {[%clk
0:03:02.9]} 8... a5 {[%clk 0:02:51.5]} 9. f3 {[%clk 0:03:02.9]} 9... g6 {[%clk
0:02:49.6]} 10. e4 {[%clk 0:03:02.9]} 10... Be6 {[%clk 0:02:49.6]} 11. Be3
{[%clk 0:03:00]} 11... Bg7 {[%clk 0:02:48.8]} 12. Be2 {[%clk 0:03:00.2]} 12...
O-O {[%clk 0:02:48.2]} 13. O-O {[%clk 0:03:00.4]} 13... Nfd7 {[%clk 0:02:47.9]}
14. Nxd7 {[%clk 0:02:59.6]} 14... Bxd7 {[%clk 0:02:47.3]} 15. Qb3 {[%clk
0:02:52.5]} 15... Qc7 {[%clk 0:02:42]} 16. Rac1 {[%clk 0:02:50]} 16... Rfd8
{[%clk 0:02:33.1]} 17. Nd5 {[%clk 0:02:39.6]} 17... Nxd5 {[%clk 0:02:30]} 18.
exd5 {[%clk 0:02:39.4]} 18... Qd6 {[%clk 0:02:12.8]} 19. Bc4 {[%clk 0:02:31.2]}
19... cxd5 {[%clk 0:02:10.8]} 20. Bxd5 {[%clk 0:02:32.1]} 20... e6 {[%clk
0:02:10.8]} 21. Be4 {[%clk 0:02:26.2]} 21... Bxd4 {[%clk 0:02:08.6]} 22. Rfd1
{[%clk 0:02:26.3]} 22... Bxe3+ {[%clk 0:02:07.6]} 23. Qxe3 {[%clk 0:02:27.2]}
23... Qb4 {[%clk 0:02:05.5]} 24. Rd4 {[%clk 0:02:08.3]} 24... Qb6 {[%clk
0:01:47.9]} 25. Rcd1 {[%clk 0:02:08.1]} 25... e5 {[%clk 0:01:45.5]} 26. R4d3
{[%clk 0:02:07.9]} 26... Qxe3+ {[%clk 0:01:44]} 27. Rxe3 {[%clk 0:02:08.8]}
27... Bxa4 {[%clk 0:01:42.2]} 28. Rxd8+ {[%clk 0:02:09]} 28... Rxd8 {[%clk
0:01:42]} 29. Bxb7 {[%clk 0:02:09.9]} 29... Rd1+ {[%clk 0:01:33.7]} 30. Kf2
{[%clk 0:02:09.8]} 30... Rd2+ {[%clk 0:01:33.7]} 31. Re2 {[%clk 0:02:06.1]}
31... Rxe2+ {[%clk 0:01:33.5]} 32. Kxe2 {[%clk 0:02:07]} 32... Bb5+ {[%clk
0:01:33.1]} 33. Kd2 {[%clk 0:02:04.9]} 33... f6 {[%clk 0:01:33.7]} 34. Kc3
{[%clk 0:02:04.5]} 34... Kf8 {[%clk 0:01:34.1]} 35. Bd5 {[%clk 0:02:02.4]} 35...
Ke7 {[%clk 0:01:33.8]} 36. Bc4 {[%clk 0:01:59.3]} 36... Bxc4 {[%clk 0:01:13.5]}
37. Kxc4 {[%clk 0:01:58.9]} 37... f5 {[%clk 0:00:56]} 38. Kd5 {[%clk 0:01:43.8]}
38... Kf6 {[%clk 0:00:55.6]} 39. b3 {[%clk 0:01:34.3]} 39... g5 {[%clk
0:00:52.8]} 40. g4 {[%clk 0:01:30.1]} 40... f4 {[%clk 0:00:39.7]} 41. h3 {[%clk
0:01:25.1]} 41... h6 {[%clk 0:00:40.1]} 42. Kc4 {[%clk 0:01:15.5]} 42... Ke6
{[%clk 0:00:38.8]} 43. Kc3 {[%clk 0:01:15.2]} 43... Kd5 {[%clk 0:00:37.9]} 44.
Kd3 {[%clk 0:01:15.9]} 44... e4+ {[%clk 0:00:37.7]} 45. fxe4+ {[%clk 0:01:16.1]}
45... Ke5 {[%clk 0:00:38.2]} 0-1

[Event "Early-Titled-Tuesday-Blitz-August-29-2023"]
[Site "Chess.com"]
[Date "2023.08.29"]
[Round "11"]
[White "KejJaj"]
[Black "Quattroporte300"]
[Result "1-0"]
[WhiteElo "2207"]
[BlackElo "2405"]
[TimeControl "180+1"]
[EndTime "10:02:06 PDT"]
[Termination "KejJaj won by resignation"]

1. d4 {[%clk 0:03:00.9]} 1... d5 {[%clk 0:02:58]} 2. Bf4 {[%clk 0:03:01.3]} 2...
Nf6 {[%clk 0:02:53.1]} 3. e3 {[%clk 0:03:01.7]} 3... g6 {[%clk 0:02:53]} 4. Nc3
{[%clk 0:03:00.7]} 4... Bg7 {[%clk 0:02:53.1]} 5. Nb5 {[%clk 0:03:00.5]} 5...
Na6 {[%clk 0:02:52.6]} 6. Nc3 {[%clk 0:03:01]} 6... O-O {[%clk 0:02:42.7]} 7.
Bxa6 {[%clk 0:03:00.5]} 7... bxa6 {[%clk 0:02:42.5]} 8. Be5 {[%clk 0:03:01.2]}
8... c5 {[%clk 0:02:40.9]} 9. dxc5 {[%clk 0:03:00.7]} 9... Be6 {[%clk 0:02:30]}
10. b4 {[%clk 0:02:55.2]} 10... a5 {[%clk 0:02:29.1]} 11. a3 {[%clk 0:02:54.8]}
11... Qc8 {[%clk 0:01:50]} 12. Nf3 {[%clk 0:02:42.8]} 12... Qb7 {[%clk 0:01:47]}
13. Qd4 {[%clk 0:02:38.4]} 13... Qa6 {[%clk 0:01:15.6]} 14. b5 {[%clk
0:02:35.9]} 14... Qc8 {[%clk 0:01:13.6]} 15. O-O {[%clk 0:02:31.3]} 15... a6
{[%clk 0:01:13.7]} 16. a4 {[%clk 0:02:07.9]} 16... Rd8 {[%clk 0:01:05.9]} 17. c6
{[%clk 0:01:56.7]} 17... Ne8 {[%clk 0:01:00.3]} 18. Bxg7 {[%clk 0:01:54.4]}
18... Nxg7 {[%clk 0:00:59.8]} 19. Qc5 {[%clk 0:01:47]} 19... Qc7 {[%clk
0:00:57.6]} 20. Nd4 {[%clk 0:01:44.6]} 20... Qd6 {[%clk 0:00:43.1]} 21. Qxd6
{[%clk 0:01:41.5]} 21... Rxd6 {[%clk 0:00:44]} 22. b6 {[%clk 0:01:37.6]} 22...
Rb8 {[%clk 0:00:08.6]} 23. Rfb1 {[%clk 0:01:37.1]} 23... Bf5 {[%clk 0:00:04.3]}
24. Rb2 {[%clk 0:01:24.5]} 24... e5 {[%clk 0:00:03.6]} 25. Nxf5 {[%clk
0:01:20.2]} 25... Nxf5 {[%clk 0:00:04]} 26. c7 {[%clk 0:01:17.8]} 26... Rf8
{[%clk 0:00:02.8]} 27. b7 {[%clk 0:01:17.1]} 27... Ne7 {[%clk 0:00:03.4]} 28.
b8=Q {[%clk 0:01:16.5]} 1-0

[Event "Early-Titled-Tuesday-Blitz-August-29-2023"]
[Site "Chess.com"]
[Date "2023.08.29"]
[Round "11"]
[White "ProfessorChess101"]
[Black "EvgenyBurmakin"]
[Result "1-0"]
[WhiteElo "2426"]
[BlackElo "2289"]
[TimeControl "180+1"]
[EndTime "10:02:13 PDT"]
[Termination "ProfessorChess101 won by checkmate"]

1. d4 {[%clk 0:02:59.8]} 1... Nf6 {[%clk 0:02:53.6]} 2. Nc3 {[%clk 0:02:58.6]}
2... d5 {[%clk 0:02:51.7]} 3. Bf4 {[%clk 0:02:57.8]} 3... Bf5 {[%clk 0:02:45.4]}
4. e3 {[%clk 0:02:55.1]} 4... e6 {[%clk 0:02:31.6]} 5. Nb5 {[%clk 0:02:51.2]}
5... Na6 {[%clk 0:02:30.6]} 6. c4 {[%clk 0:02:36.6]} 6... Bb4+ {[%clk
0:02:25.3]} 7. Nc3 {[%clk 0:02:34.6]} 7... Ne4 {[%clk 0:02:24]} 8. Ne2 {[%clk
0:02:21.9]} 8... g5 {[%clk 0:02:04.9]} 9. Bg3 {[%clk 0:02:16.4]} 9... h5 {[%clk
0:02:01.3]} 10. h4 {[%clk 0:02:06.2]} 10... Nxg3 {[%clk 0:01:31.3]} 11. Nxg3
{[%clk 0:02:04.1]} 11... Bg4 {[%clk 0:01:14.7]} 12. Qa4+ {[%clk 0:01:56.8]}
12... c6 {[%clk 0:01:13.1]} 13. cxd5 {[%clk 0:01:55]} 13... exd5 {[%clk
0:01:10.5]} 14. Bxa6 {[%clk 0:01:50.8]} 14... Bxc3+ {[%clk 0:01:10.7]} 15. bxc3
{[%clk 0:01:51.6]} 15... bxa6 {[%clk 0:01:10.9]} 16. Qxc6+ {[%clk 0:01:51.6]}
16... Kf8 {[%clk 0:01:01.7]} 17. hxg5 {[%clk 0:01:47.3]} 17... Rc8 {[%clk
0:00:51.5]} 18. Qf6 {[%clk 0:01:30.9]} 18... Qxf6 {[%clk 0:00:43]} 19. gxf6
{[%clk 0:01:31.8]} 19... Rxc3 {[%clk 0:00:28.2]} 20. Kd2 {[%clk 0:01:30.5]}
20... Rc6 {[%clk 0:00:26.7]} 21. f3 {[%clk 0:01:27.8]} 21... Bd7 {[%clk
0:00:26.1]} 22. Nxh5 {[%clk 0:01:10.4]} 22... Bf5 {[%clk 0:00:15.8]} 23. e4
{[%clk 0:01:00.5]} 23... dxe4 {[%clk 0:00:14.6]} 24. Ng3 {[%clk 0:01:01.1]}
24... Bg6 {[%clk 0:00:12.7]} 25. Rxh8# {[%clk 0:00:58.5]} 1-0

[Event "Early-Titled-Tuesday-Blitz-August-29-2023"]
[Site "Chess.com"]
[Date "2023.08.29"]
[Round "11"]
[White "betta2004"]
[Black "benny_aizenberg"]
[Result "0-1"]
[WhiteElo "2555"]
[BlackElo "2669"]
[TimeControl "180+1"]
[EndTime "10:02:14 PDT"]
[Termination "benny_aizenberg won by resignation"]

1. e4 {[%clk 0:03:00.9]} 1... e5 {[%clk 0:02:52.3]} 2. Nf3 {[%clk 0:03:00.8]}
2... Nf6 {[%clk 0:02:52.7]} 3. Bc4 {[%clk 0:02:58.9]} 3... Bc5 {[%clk
0:02:51.5]} 4. O-O {[%clk 0:02:58.5]} 4... d6 {[%clk 0:02:46.7]} 5. d3 {[%clk
0:02:57.2]} 5... h6 {[%clk 0:02:44.6]} 6. c3 {[%clk 0:02:57.7]} 6... Bg4 {[%clk
0:02:40]} 7. h3 {[%clk 0:02:57.2]} 7... Bxf3 {[%clk 0:02:31.4]} 8. Qxf3 {[%clk
0:02:58.1]} 8... Nc6 {[%clk 0:02:29.6]} 9. a4 {[%clk 0:02:57.6]} 9... a5 {[%clk
0:02:26]} 10. Nd2 {[%clk 0:02:56.7]} 10... Qe7 {[%clk 0:02:20.7]} 11. Nb3 {[%clk
0:02:57.1]} 11... Bb6 {[%clk 0:02:17.8]} 12. Be3 {[%clk 0:02:57]} 12... Bxe3
{[%clk 0:01:36.7]} 13. Qxe3 {[%clk 0:02:57.9]} 13... O-O {[%clk 0:01:32.6]} 14.
Bb5 {[%clk 0:02:54.1]} 14... Nd8 {[%clk 0:01:30.4]} 15. Nd2 {[%clk 0:02:52.2]}
15... Ne6 {[%clk 0:01:28.6]} 16. Rae1 {[%clk 0:02:49.1]} 16... Nf4 {[%clk
0:01:19.8]} 17. Kh2 {[%clk 0:02:48.6]} 17... c6 {[%clk 0:01:18.6]} 18. Bc4
{[%clk 0:02:48.2]} 18... Qd7 {[%clk 0:01:17.4]} 19. d4 {[%clk 0:02:44.8]} 19...
Rae8 {[%clk 0:01:06.6]} 20. Nf3 {[%clk 0:02:43.2]} 20... g5 {[%clk 0:01:03]} 21.
Bd3 {[%clk 0:02:38.1]} 21... Kh8 {[%clk 0:00:52.9]} 22. Ng1 {[%clk 0:02:34.1]}
22... Rg8 {[%clk 0:00:49.4]} 23. g3 {[%clk 0:02:33.2]} 23... Nxh3 {[%clk
0:00:37.8]} 24. Qf3 {[%clk 0:02:29.2]} 24... Nf4 {[%clk 0:00:18.3]} 25. gxf4
{[%clk 0:02:28.4]} 25... gxf4 {[%clk 0:00:17.3]} 26. Be2 {[%clk 0:02:15.1]}
26... Rg4 {[%clk 0:00:13.8]} 27. Nh3 {[%clk 0:02:11.9]} 27... Reg8 {[%clk
0:00:11]} 28. Rg1 {[%clk 0:02:11.7]} 28... h5 {[%clk 0:00:10.8]} 29. dxe5 {[%clk
0:01:54.4]} 29... dxe5 {[%clk 0:00:11.7]} 30. Rd1 {[%clk 0:01:54.6]} 30... Qe7
{[%clk 0:00:10.2]} 31. Qh1 {[%clk 0:01:43.6]} 31... Nh7 {[%clk 0:00:09.1]} 32.
Bxg4 {[%clk 0:01:36.8]} 32... hxg4 {[%clk 0:00:10]} 33. Rxg4 {[%clk 0:01:36.9]}
33... Rxg4 {[%clk 0:00:09.5]} 34. Qf3 {[%clk 0:01:37.5]} 34... Qh4 {[%clk
0:00:08.4]} 35. Rd8+ {[%clk 0:01:37.1]} 35... Kg7 {[%clk 0:00:06.6]} 36. Rd1
{[%clk 0:01:35.7]} 36... Ng5 {[%clk 0:00:06.6]} 37. Qd3 {[%clk 0:01:35.8]} 37...
f3 {[%clk 0:00:06.2]} 0-1

[Event "Early-Titled-Tuesday-Blitz-August-29-2023"]
[Site "Chess.com"]
[Date "2023.08.29"]
[Round "11"]
[White "masterofpuppets2"]
[Black "Forge13"]
[Result "1-0"]
[WhiteElo "2473"]
[BlackElo "2618"]
[TimeControl "180+1"]
[EndTime "10:02:15 PDT"]
[Termination "masterofpuppets2 won by resignation"]

1. d4 {[%clk 0:02:59.3]} 1... Nf6 {[%clk 0:02:59.6]} 2. c4 {[%clk 0:02:59.2]}
2... d6 {[%clk 0:03:00]} 3. Nc3 {[%clk 0:02:58.4]} 3... e5 {[%clk 0:03:00.3]} 4.
d5 {[%clk 0:02:58.6]} 4... a5 {[%clk 0:02:59.6]} 5. e4 {[%clk 0:02:58.6]} 5...
Na6 {[%clk 0:03:00.2]} 6. f3 {[%clk 0:02:59.1]} 6... Be7 {[%clk 0:02:59.9]} 7.
Be3 {[%clk 0:02:57.1]} 7... h6 {[%clk 0:02:58.6]} 8. Qd2 {[%clk 0:02:56.6]} 8...
Nh7 {[%clk 0:02:58.7]} 9. g3 {[%clk 0:02:54.7]} 9... Bg5 {[%clk 0:02:58.3]} 10.
f4 {[%clk 0:02:55.1]} 10... exf4 {[%clk 0:02:59.2]} 11. gxf4 {[%clk 0:02:56]}
11... Bh4+ {[%clk 0:02:59.6]} 12. Kd1 {[%clk 0:02:56.7]} 12... O-O {[%clk
0:02:50.8]} 13. Nf3 {[%clk 0:02:47.2]} 13... Re8 {[%clk 0:02:47.2]} 14. Be2
{[%clk 0:02:37.9]} 14... Bf6 {[%clk 0:02:45.7]} 15. Rg1 {[%clk 0:02:33.7]} 15...
c6 {[%clk 0:02:39.8]} 16. e5 {[%clk 0:02:15.3]} 16... Be7 {[%clk 0:02:38.2]} 17.
Ne4 {[%clk 0:02:03.7]} 17... dxe5 {[%clk 0:02:12.5]} 18. fxe5 {[%clk 0:01:58.4]}
18... Bb4 {[%clk 0:02:11.1]} 19. Nc3 {[%clk 0:01:48.9]} 19... Kh8 {[%clk
0:02:08.4]} 20. Bxh6 {[%clk 0:01:36.7]} 20... gxh6 {[%clk 0:02:03.6]} 21. Qxh6
{[%clk 0:01:37.6]} 21... Bf8 {[%clk 0:02:02.6]} 22. Qh5 {[%clk 0:01:28.8]} 22...
f6 {[%clk 0:01:45.8]} 23. Bd3 {[%clk 0:01:10]} 23... Re7 {[%clk 0:01:44.7]} 24.
exf6 {[%clk 0:01:05]} 24... Nb4 {[%clk 0:00:46.5]} 25. fxe7 {[%clk 0:00:55.2]}
25... Qxe7 {[%clk 0:00:46.8]} 26. Ne5 {[%clk 0:00:44.4]} 1-0

[Event "Early-Titled-Tuesday-Blitz-August-29-2023"]
[Site "Chess.com"]
[Date "2023.08.29"]
[Round "11"]
[White "wqws"]
[Black "isaak2009"]
[Result "1-0"]
[WhiteElo "2683"]
[BlackElo "2565"]
[TimeControl "180+1"]
[EndTime "10:02:22 PDT"]
[Termination "wqws won by checkmate"]

1. e4 {[%clk 0:03:00.9]} 1... c6 {[%clk 0:02:59.8]} 2. d4 {[%clk 0:03:00.7]}
2... d5 {[%clk 0:03:00.7]} 3. e5 {[%clk 0:03:00.9]} 3... Bf5 {[%clk 0:03:00.5]}
4. h4 {[%clk 0:03:01.5]} 4... h5 {[%clk 0:03:00.3]} 5. c4 {[%clk 0:03:01.9]}
5... e6 {[%clk 0:02:59]} 6. Nc3 {[%clk 0:03:02.4]} 6... Bb4 {[%clk 0:02:58.7]}
7. cxd5 {[%clk 0:03:01]} 7... Qxd5 {[%clk 0:02:57]} 8. a3 {[%clk 0:02:54.2]}
8... Bxc3+ {[%clk 0:02:50.4]} 9. bxc3 {[%clk 0:02:55.1]} 9... c5 {[%clk
0:02:48.7]} 10. Be3 {[%clk 0:02:49.9]} 10... cxd4 {[%clk 0:02:47.4]} 11. Qxd4
{[%clk 0:02:44.3]} 11... Qxd4 {[%clk 0:02:46.9]} 12. cxd4 {[%clk 0:02:43.7]}
12... Ne7 {[%clk 0:02:43.5]} 13. Nf3 {[%clk 0:02:38.2]} 13... Nbc6 {[%clk
0:02:33.2]} 14. Be2 {[%clk 0:02:37.3]} 14... O-O {[%clk 0:02:32.4]} 15. O-O
{[%clk 0:02:37.8]} 15... b6 {[%clk 0:02:32.3]} 16. Rac1 {[%clk 0:02:36.7]} 16...
Rac8 {[%clk 0:02:29.8]} 17. Ba6 {[%clk 0:02:36.2]} 17... Rc7 {[%clk 0:02:28.1]}
18. Rc4 {[%clk 0:02:24.6]} 18... Bd3 {[%clk 0:02:13]} 19. Rxc6 {[%clk
0:02:24.2]} 19... Rxc6 {[%clk 0:02:11.7]} 20. Bxd3 {[%clk 0:02:24.2]} 20... Rc3
{[%clk 0:02:12.1]} 21. Be4 {[%clk 0:02:14.5]} 21... Rxa3 {[%clk 0:02:11.9]} 22.
Rc1 {[%clk 0:02:13.2]} 22... Nd5 {[%clk 0:02:05.6]} 23. Bg5 {[%clk 0:02:12.5]}
23... Nc3 {[%clk 0:02:01.6]} 24. Bd3 {[%clk 0:02:08.1]} 24... Rc8 {[%clk
0:01:55.4]} 25. Kh2 {[%clk 0:02:06]} 25... a5 {[%clk 0:01:51.1]} 26. Nd2 {[%clk
0:02:04.1]} 26... Rc7 {[%clk 0:01:20.6]} 27. Bd8 {[%clk 0:01:44.9]} 27... Nd5
{[%clk 0:00:38.9]} 28. Bxc7 {[%clk 0:01:40.6]} 28... Rxd3 {[%clk 0:00:38.6]} 29.
Ne4 {[%clk 0:01:41]} 29... Rxd4 {[%clk 0:00:37.1]} 30. Ng5 {[%clk 0:01:40.6]}
30... Rxh4+ {[%clk 0:00:37.1]} 31. Kg1 {[%clk 0:01:37.5]} 31... Rg4 {[%clk
0:00:36.3]} 32. Bd8 {[%clk 0:01:36.3]} 32... g6 {[%clk 0:00:25.9]} 33. Rc8
{[%clk 0:01:32.1]} 33... Kg7 {[%clk 0:00:24.9]} 34. f3 {[%clk 0:01:32.2]} 34...
Rb4 {[%clk 0:00:16.9]} 35. Ne4 {[%clk 0:01:30.5]} 35... Rb1+ {[%clk 0:00:10.1]}
36. Kh2 {[%clk 0:01:30.3]} 36... Re1 {[%clk 0:00:08.8]} 37. Bf6+ {[%clk
0:01:30]} 37... Nxf6 {[%clk 0:00:07.7]} 38. exf6+ {[%clk 0:01:30.9]} 38... Kh7
{[%clk 0:00:05.5]} 39. Ng5+ {[%clk 0:01:30.8]} 39... Kh6 {[%clk 0:00:06]} 40.
Nxf7+ {[%clk 0:01:31.7]} 40... Kh7 {[%clk 0:00:06.9]} 41. Rh8# {[%clk
0:01:32.2]} 1-0